bitfinex/quotes_SOLUSD_20241013
["timestamp","ask_amount","ask_price","bid_price","bid_amount"]
[1728803545107,6.8307,146.4,146.37,0.8772094]
[1728803551943,23.776884,146.41,146.37,0.8772094]
[1728803552148,6.8311,146.39,146.37,0.8772094]
[1728803557945,6.8307,146.4,146.37,0.8772094]
[1728803565834,22.2152,146.42,146.37,0.8772094]
[1728803566133,6.8302,146.41,146.37,0.8772094]
[1728803568630,6.8306,146.4,146.37,0.8772094]
[1728803575462,6.8302,146.41,146.37,0.8772094]
[1728803577058,7.08755279,146.44,146.37,0.8772094]
[1728803577270,6.8306,146.4,146.37,0.8772094]
[1728803580439,6.831,146.39,146.37,0.8772094]
[1728803588159,6.8307,146.4,146.37,0.8772094]
[1728803588363,21.8535,146.42,146.37,0.8772094]
[1728803588364,6.8294,146.43,146.37,2.24355898]
[1728803588565,6.8303,146.41,146.37,0.8772094]
[1728803594564,6.8306,146.4,146.37,0.8772094]
[1728803604392,23.776884,146.44,146.37,0.8772094]
[1728803604597,6.8304,146.41,146.37,0.8772094]
[1728803608095,17.0733,146.43,146.37,0.8772094]
[1728803608909,6.8307,146.4,146.37,0.8772094]
[1728803610280,17.0733,146.43,146.37,0.8772094]
[1728803610521,6.8302,146.41,146.37,0.8772094]
[1728803617111,40.849184,146.44,146.37,0.8772094]
[1728803617300,23.776884,146.42,146.37,0.8772094]
[1728803617483,6.8313,146.39,146.37,0.8772094]
[1728803624899,22.5888,146.43,146.37,0.8772094]
[1728803625109,6.8309,146.4,146.37,0.8772094]
[1728803643329,23.776884,146.42,146.37,0.8772094]
[1728803643712,6.8312,146.39,146.37,0.8772094]
[1728803651535,6.8315,146.38,146.37,0.8772094]
[1728803698579,30.608384,146.38,146.37,0.8772094]
[1728803699181,6.8315,146.38,146.37,0.8772094]
[1728803700784,6.8311,146.39,146.37,0.8772094]
[1728803701459,6.8315,146.38,146.37,0.8772094]
[1728803710890,6.8307,146.4,146.37,0.8772094]
[1728803711672,6.8303,146.41,146.37,0.8772094]
[1728803711977,6.8306,146.4,146.37,0.8772094]
[1728803712491,6.8303,146.41,146.37,0.8772094]
[1728803712897,6.8298,146.42,146.37,0.8772094]
[1728803713103,6.8293,146.43,146.37,2.24337677]
[1728803713895,3.55707163,146.46,146.38,1.36614089]
[1728803714203,10.67974535,146.46,146.38,12.76812094]
[1728803714376,6.8283,146.45,146.38,27.83852094]
[1728803715384,6.8283,146.45,146.38,26.47238005]
[1728803715591,6.8283,146.45,146.38,15.0704]
[1728803716173,7.12267372,146.46,146.38,15.0704]
[1728803716380,6.8288,146.44,146.38,15.0704]
[1728803716882,6.8288,146.44,146.39,1.36602538]
[1728803717084,6.8288,146.44,146.38,15.0704]
[1728803717604,6.8288,146.44,146.39,1.36602548]
[1728803718095,6.8288,146.44,146.38,15.0704]
[1728803719192,6.8288,146.44,146.39,1.36602589]
[1728803720498,6.8283,146.45,146.38,15.0704]
[1728803724521,6.8287,146.44,146.38,15.0704]
[1728803730720,6.8282,146.45,146.39,1.36588227]
[1728803733536,6.8282,146.45,146.38,26.47238005]
[1728803734237,6.8282,146.45,146.38,15.0704]
[1728803734403,6.8282,146.45,146.38,26.47238005]
[1728803740718,6.8282,146.45,146.38,15.0704]
[1728803741122,6.8282,146.45,146.38,26.47238005]
[1728803742427,6.8289,146.44,146.38,15.0704]
[1728803742633,7.12267372,146.46,146.37,20.8772094]
[1728803742832,6.8301,146.41,146.37,20.8772094]
[1728803743339,6.8301,146.41,146.37,0.8772094]
[1728803744824,6.8297,146.42,146.37,0.8772094]
[1728803746637,6.8293,146.43,146.38,1.36610586]
[1728803748339,6.8293,146.43,146.37,20.8772094]
[1728803748653,6.8298,146.42,146.37,0.8772094]
[1728803751258,6.8302,146.41,146.37,0.8772094]
[1728803752939,6.831,146.39,146.37,0.8772094]
[1728803753326,6.8315,146.38,146.37,0.8772094]
[1728803758347,6.8313,146.39,146.37,0.8772094]
[1728803761362,6.8315,146.38,146.37,0.8772094]
[1728803762433,22.9976,146.38,146.37,0.8772094]
[1728803763545,46.774484,146.38,146.37,0.8772094]
[1728803764846,22.9976,146.38,146.37,0.8772094]
[1728803767646,46.774484,146.38,146.37,0.8772094]
[1728803774052,30.608884,146.37,146.36,1.6262387]
[1728803779467,30.608884,146.37,146.32,2.0]
[1728803779468,17.0813,146.36,146.32,2.0]
[1728803779692,6.8338,146.33,146.32,2.0]
[1728803786771,6.8338,146.33,146.32,2.0]
[1728803795880,30.610684,146.33,146.32,2.0]
[1728803802807,6.8338,146.33,146.32,2.0]
[1728803804601,6.281,146.35,146.32,2.0]
[1728803804602,6.8331,146.35,146.32,2.0]
[1728803805184,6.8338,146.34,146.32,2.0]
[1728803805476,6.8338,146.33,146.32,2.0]
[1728803840038,30.610684,146.33,146.32,2.0]
[1728803843048,6.8338,146.33,146.32,2.0]
[1728803853252,6.8334,146.34,146.32,2.0]
[1728803853630,6.8338,146.33,146.32,2.0]
[1728803854548,6.8335,146.34,146.32,2.0]
[1728803857254,3.57632178,146.36,146.32,2.0]
[1728803857555,3.57632178,146.37,146.32,2.0]
[1728803857731,6.833,146.35,146.32,2.0]
[1728803858430,6.8324,146.37,146.32,2.0]
[1728803858655,13.96683968,146.38,146.32,14.76864369]
[1728803858864,13.96683968,146.38,146.32,13.40198005]
[1728803861154,6.833,146.35,146.32,2.0]
[1728803861351,6.8334,146.34,146.32,2.0]
[1728803861860,6.833,146.35,146.32,2.0]
[1728803863876,6.8325,146.36,146.32,2.0]
[1728803864275,6.8321,146.37,146.32,3.36674322]
[1728803865971,6.8321,146.37,146.32,2.0]
[1728803866976,13.96683968,146.38,146.32,2.0]
[1728803871858,7.13523968,146.38,146.32,2.0]
[1728803872184,6.832,146.37,146.32,2.0]
[1728803874468,13.96683968,146.38,146.32,2.0]
[1728803874667,13.96683968,146.38,146.32,5.47584894]
[1728803876169,13.96683968,146.38,146.32,2.0]
[1728803876877,13.96683968,146.38,146.32,5.4751495]
[1728803877076,7.13523968,146.38,146.32,5.4751495]
[1728803878073,7.13523968,146.38,146.32,2.0]
[1728803878459,7.13523968,146.38,146.32,13.40198005]
[1728803878664,7.13523968,146.38,146.32,16.87662216]
[1728803881061,7.13523968,146.38,146.32,13.40198005]
[1728803881273,7.13523968,146.38,146.32,2.0]
[1728803882084,7.13523968,146.38,146.32,5.47348314]
[1728803882787,7.13523968,146.38,146.32,2.0]
[1728803882788,13.96673968,146.38,146.32,2.0]
[1728803883085,13.96673968,146.38,146.32,5.47328067]
[1728803883290,13.96673968,146.38,146.32,2.0]
[1728803885490,7.13523968,146.38,146.33,1.36646184]
[1728803886266,7.13523968,146.38,146.32,16.87487294]
[1728803886693,15.1374,146.42,146.34,11.40198005]
[1728803886876,15.1374,146.42,146.35,21.36626857]
[1728803887390,15.1374,146.42,146.35,20.0]
[1728803887573,21.9671,146.42,146.35,11.40198005]
[1728803889695,6.8297,146.42,146.36,1.36619271]
[1728803890197,16.3373,146.45,146.37,1.36619271]
[1728803890508,6.8281,146.46,146.39,11.40198005]
[1728803890676,6.8281,146.46,146.38,11.40198005]
[1728803890875,6.8281,146.46,146.39,20.0]
[1728803893069,6.8281,146.46,146.39,11.40198005]
[1728803894595,6.8281,146.46,146.4,23.776884]
[1728803897205,6.8281,146.46,146.39,11.40198005]
[1728803901406,6.8281,146.46,146.4,20.0]
[1728803909107,6.8281,146.46,146.4,11.40198005]
[1728803928415,12.853,146.47,146.4,11.40198005]
[1728803934342,12.853,146.47,146.41,11.40198005]
[1728803934640,6.8269,146.48,146.42,12.76765919]
[1728803936729,6.8269,146.48,146.43,1.36567905]
[1728803937239,15.616,146.49,146.42,11.40198005]
[1728803937422,22.4425,146.49,146.42,11.40198005]
[1728803940241,6.8269,146.48,146.41,20.0]
[1728803940736,6.8273,146.47,146.41,20.0]
[1728803940921,6.6445,146.48,146.38,20.0]
[1728803941113,6.8279,146.46,146.38,20.0]
[1728803941447,6.8279,146.46,146.38,31.40198005]
[1728803941736,6.8279,146.46,146.38,11.40198005]
[1728803942225,6.8279,146.46,146.39,23.776884]
[1728803942543,6.8287,146.44,146.37,17.44928005]
[1728803942741,6.8284,146.45,146.37,17.44928005]
[1728803943247,6.8284,146.45,146.38,20.0]
[1728803943838,6.8284,146.45,146.38,31.40198005]
[1728803949238,6.8284,146.45,146.38,20.0]
[1728803949429,6.8284,146.45,146.39,20.0]
[1728803972477,23.7122,146.48,146.39,20.0]
[1728803972658,6.8281,146.46,146.39,20.0]
[1728803980863,6.6445,146.48,146.4,1.36587589]
[1728803981067,6.6445,146.48,146.4,12.76785594]
[1728803981570,6.6445,146.48,146.42,11.40198005]
[1728803981783,15.616,146.49,146.43,1.36557568]
[1728803982093,22.4427,146.49,146.43,1.36557568]
[1728803982273,22.4427,146.49,146.42,11.40198005]
[1728803989591,15.616,146.49,146.41,43.776884]
[1728803989987,6.8274,146.47,146.41,43.776884]
[1728803990496,6.8278,146.46,146.38,23.94244359]
[1728803990694,6.8278,146.46,146.4,20.0]
[1728803991395,6.8283,146.45,146.39,20.0]
[1728803991686,6.5889,146.47,146.37,6.5827]
[1728803991879,22.6816,146.44,146.36,27.80728005]
[1728803992295,22.6816,146.44,146.36,11.40198005]
[1728803992908,22.6816,146.44,146.33,29.08031992]
[1728803992909,22.6816,146.44,146.35,11.40198005]
[1728803993289,22.6816,146.44,146.37,23.776884]
[1728803993607,22.6816,146.44,146.38,20.0]
[1728803999414,15.8525,146.44,146.39,1.36600511]
[1728804000291,15.8525,146.44,146.38,31.40198005]
[1728804000514,22.6813,146.44,146.38,20.0]
[1728804006024,15.8525,146.44,146.38,31.40198005]
[1728804006222,15.8525,146.44,146.38,20.0]
[1728804006402,6.8293,146.43,146.35,11.40198005]
[1728804006598,6.8293,146.43,146.36,20.0]
[1728804009000,22.6813,146.44,146.36,20.0]
[1728804009519,22.6813,146.44,146.37,11.40198005]
[1728804010027,22.6812,146.44,146.38,31.40198005]
[1728804014105,15.8525,146.44,146.38,31.40198005]
[1728804015222,15.8525,146.44,146.39,12.76798035]
[1728804015520,6.8278,146.46,146.39,12.76798035]
[1728804016002,6.8278,146.46,146.4,31.40198005]
[1728804016203,6.8278,146.46,146.41,1.36586752]
[1728804017537,6.8278,146.46,146.4,12.7678503]
[1728804017723,6.8278,146.46,146.4,21.36587025]
[1728804019424,13.4163,146.47,146.4,32.7678503]
[1728804019602,13.4163,146.47,146.41,11.40198005]
[1728804019802,6.5889,146.47,146.42,1.36571573]
[1728804020007,15.807,146.48,146.43,1.36570324]
[1728804020424,15.807,146.48,146.42,31.40198005]
[1728804024436,15.807,146.48,146.41,11.40198005]
[1728804024621,22.6339,146.48,146.42,20.0]
[1728804025209,22.6339,146.48,146.41,20.0]
[1728804025405,22.6339,146.48,146.41,43.776884]
[1728804029319,15.807,146.48,146.42,11.40198005]
[1728804045051,22.6339,146.48,146.42,11.40198005]
[1728804045344,15.807,146.48,146.4,43.776884]
[1728804046027,6.828,146.46,146.4,20.0]
[1728804050083,6.828,146.46,146.4,11.40198005]
[1728804050236,6.828,146.46,146.41,20.0]
[1728804051059,12.8386,146.47,146.42,1.36575064]
[1728804051234,12.8386,146.47,146.41,31.40198005]
[1728804051630,12.8386,146.47,146.42,3.47530668]
[1728804054037,22.6339,146.48,146.42,3.47530668]
[1728804054237,22.6339,146.48,146.43,3.47530668]
[1728804054452,22.6339,146.48,146.42,3.47530668]
[1728804054655,22.6339,146.48,146.43,3.47530668]
[1728804054854,22.6339,146.48,146.42,3.47530668]
[1728804055060,22.6339,146.48,146.43,3.47530668]
[1728804055359,22.6339,146.48,146.42,3.47530668]
[1728804055753,22.6339,146.48,146.43,3.47530668]
[1728804056261,22.6339,146.48,146.42,3.47530668]
[1728804056440,22.6339,146.48,146.43,3.47733503]
[1728804056641,22.6339,146.48,146.41,31.40198005]
[1728804056854,22.6339,146.48,146.42,3.47733662]
[1728804057059,22.6339,146.48,146.43,3.47733662]
[1728804057243,22.6339,146.48,146.41,31.40198005]
[1728804057470,22.6339,146.48,146.42,3.47784392]
[1728804057743,22.6339,146.48,146.43,3.47784392]
[1728804057956,22.6339,146.48,146.41,31.40198005]
[1728804058159,22.6339,146.48,146.42,3.47784233]
[1728804058367,22.6339,146.48,146.43,3.47784233]
[1728804058543,22.6339,146.48,146.41,31.40198005]
[1728804058861,22.6339,146.48,146.42,3.4784174]
[1728804059059,22.6339,146.48,146.43,3.4784174]
[1728804059362,22.6339,146.48,146.44,3.47913845]
[1728804059536,22.6339,146.48,146.43,3.47913845]
[1728804059739,22.6339,146.48,146.44,3.47913845]
[1728804059964,22.6339,146.48,146.43,3.47913845]
[1728804060163,22.6339,146.48,146.44,3.47913845]
[1728804060461,22.6339,146.48,146.42,35.17886405]
[1728804060664,22.6339,146.48,146.43,3.47973414]
[1728804060868,22.6339,146.48,146.44,3.47973414]
[1728804061046,22.6339,146.48,146.42,35.17886405]
[1728804061257,23.0841,146.51,146.42,35.17886405]
[1728804061258,6.8265,146.49,146.43,14.88171419]
[1728804061445,6.8265,146.49,146.43,11.40198005]
[1728804061764,6.8265,146.49,146.44,3.48027984]
[1728804061961,6.8265,146.49,146.43,11.40198005]
[1728804062172,6.8265,146.49,146.44,3.48028155]
[1728804062365,6.8265,146.49,146.42,35.17886405]
[1728804062556,6.8265,146.49,146.43,3.48066703]
[1728804062754,6.8265,146.49,146.44,3.48066703]
[1728804063053,6.8265,146.49,146.42,35.17886405]
[1728804063255,6.8265,146.49,146.43,3.48066715]
[1728804063467,6.8265,146.49,146.44,3.48066715]
[1728804063766,6.8265,146.49,146.42,23.776884]
[1728804063962,6.8265,146.49,146.43,3.48111252]
[1728804064164,6.8265,146.49,146.44,3.48111252]
[1728804064364,6.8265,146.49,146.42,23.776884]
[1728804064564,6.8265,146.49,146.43,3.48163785]
[1728804064764,6.8265,146.49,146.44,3.48163785]
[1728804064983,6.8265,146.49,146.42,23.776884]
[1728804065171,6.8265,146.49,146.43,3.48163785]
[1728804065353,6.8265,146.49,146.44,3.48163785]
[1728804065552,6.8265,146.49,146.45,3.48163785]
[1728804065751,6.8265,146.49,146.42,23.776884]
[1728804065966,6.8265,146.49,146.43,3.48226925]
[1728804066168,6.8265,146.49,146.44,3.48226925]
[1728804066368,6.8265,146.49,146.45,3.48226925]
[1728804066586,6.8265,146.49,146.42,23.776884]
[1728804066875,6.8265,146.49,146.43,3.48226794]
[1728804067054,6.8265,146.49,146.44,3.48226794]
[1728804067251,6.8265,146.49,146.45,3.48226794]
[1728804067467,6.8265,146.49,146.42,23.776884]
[1728804067675,6.8265,146.49,146.43,3.48220381]
[1728804067980,6.8265,146.49,146.44,3.48220381]
[1728804068147,6.8265,146.49,146.45,3.48220381]
[1728804068356,6.8265,146.49,146.42,23.776884]
[1728804068574,6.8265,146.49,146.43,3.48223938]
[1728804068771,6.0198,146.51,146.42,23.776884]
[1728804069073,6.8276,146.47,146.41,20.0]
[1728804069263,6.8276,146.47,146.43,3.48223943]
[1728804069571,6.0198,146.51,146.43,3.48223943]
[1728804069572,23.776884,146.5,146.43,3.48223943]
[1728804069779,6.8278,146.46,146.43,3.48223943]
[1728804069958,6.8278,146.46,146.38,31.40198005]
[1728804070279,6.8278,146.46,146.39,3.48269882]
[1728804070461,6.8278,146.46,146.4,3.48269882]
[1728804070663,6.8283,146.45,146.4,3.48269882]
[1728804071752,6.8283,146.45,146.41,3.48269882]
[1728804071971,6.8283,146.45,146.38,31.40198005]
[1728804072175,6.8283,146.45,146.42,3.48230521]
[1728804072562,6.8283,146.45,146.4,20.0]
[1728804073071,6.8283,146.45,146.41,3.48228012]
[1728804073367,6.6283,146.47,146.41,3.48228012]
[1728804073368,6.8293,146.43,146.41,3.48228012]
[1728804078060,6.8288,146.44,146.41,3.48228012]
[1728804078865,6.8288,146.44,146.42,3.48066919]
[1728804079067,6.8288,146.44,146.41,3.48228012]
[1728804084860,6.8288,146.44,146.39,21.3659678]
[1728804085059,6.8288,146.44,146.4,3.47993661]
[1728804085372,6.8288,146.44,146.41,3.47993661]
[1728804085578,6.8288,146.44,146.39,20.0]
[1728804085781,6.8288,146.44,146.4,3.47991892]
[1728804085971,6.8288,146.44,146.41,3.47991892]
[1728804086160,6.8288,146.44,146.39,20.0]
[1728804086361,6.8288,146.44,146.4,3.47991892]
[1728804086676,6.8288,146.44,146.39,20.0]
[1728804086677,6.8288,146.44,146.41,3.47991892]
[1728804086882,6.8288,146.44,146.39,20.0]
[1728804087084,6.8288,146.44,146.4,3.47990312]
[1728804087264,6.8288,146.44,146.41,3.47990312]
[1728804087464,6.8288,146.44,146.39,20.0]
[1728804087664,6.8288,146.44,146.4,3.47989228]
[1728804087864,6.8288,146.44,146.41,3.47989228]
[1728804088083,6.8288,146.44,146.39,20.0]
[1728804088276,6.8288,146.44,146.4,3.47967853]
[1728804088469,6.8288,146.44,146.41,3.47967853]
[1728804088672,6.8288,146.44,146.39,20.0]
[1728804088982,6.8288,146.44,146.4,3.47968351]
[1728804089201,6.8288,146.44,146.41,3.47968351]
[1728804089482,6.8288,146.44,146.39,20.0]
[1728804089674,6.8288,146.44,146.4,3.47959557]
[1728804089878,6.8288,146.44,146.41,3.47959557]
[1728804090055,6.8288,146.44,146.39,20.0]
[1728804090256,6.8288,146.44,146.4,3.47959557]
[1728804090459,6.8288,146.44,146.41,3.47959557]
[1728804090681,6.8288,146.44,146.42,3.47959557]
[1728804090892,6.8288,146.44,146.4,3.47959557]
[1728804091072,6.8288,146.44,146.41,3.47959557]
[1728804091380,6.8288,146.44,146.42,3.47959557]
[1728804091584,6.8284,146.45,146.4,4.84557444]
[1728804091881,6.8284,146.45,146.41,3.47959557]
[1728804092087,6.8284,146.45,146.42,3.47959557]
[1728804092389,6.8284,146.45,146.4,3.47946712]
[1728804092567,6.8284,146.45,146.41,3.47946712]
[1728804092767,6.8284,146.45,146.42,3.47946712]
[1728804092966,6.8284,146.45,146.4,3.47946712]
[1728804093167,6.8284,146.45,146.41,3.47946712]
[1728804093378,6.8284,146.45,146.42,3.47946712]
[1728804093685,6.8284,146.45,146.4,3.47946712]
[1728804093886,6.8284,146.45,146.41,3.47946712]
[1728804094183,6.8284,146.45,146.42,3.47946712]
[1728804094366,6.8284,146.45,146.4,3.47946712]
[1728804094570,6.8284,146.45,146.41,3.47946712]
[1728804094780,6.8284,146.45,146.42,3.47946712]
[1728804095084,6.8284,146.45,146.4,3.47946712]
[1728804095275,6.8284,146.45,146.41,3.47946712]
[1728804095475,6.8284,146.45,146.42,3.47946712]
[1728804095685,6.8284,146.45,146.4,3.47946712]
[1728804095885,6.8284,146.45,146.41,3.47946712]
[1728804096081,6.8284,146.45,146.42,3.47946712]
[1728804096287,6.8284,146.45,146.4,3.47946712]
[1728804096482,6.8284,146.45,146.41,3.47946712]
[1728804096680,6.6283,146.47,146.39,20.0]
[1728804096895,6.8278,146.46,146.4,3.47940196]
[1728804097074,6.8278,146.46,146.41,3.47940196]
[1728804097268,6.8278,146.46,146.4,1.36586054]
[1728804097593,6.8278,146.46,146.41,3.4792425]
[1728804097891,6.8278,146.46,146.4,1.36586054]
[1728804098090,6.8278,146.46,146.41,3.4792425]
[1728804098294,6.8278,146.46,146.39,20.0]
[1728804098488,6.8278,146.46,146.4,3.47911739]
[1728804098672,6.8278,146.46,146.41,3.47911739]
[1728804098868,6.8283,146.45,146.41,3.47911739]
[1728804099070,6.8283,146.45,146.39,20.0]
[1728804099376,6.8287,146.44,146.4,3.47913941]
[1728804099584,6.8287,146.44,146.41,3.47913941]
[1728804099980,6.8287,146.44,146.39,3.47913941]
[1728804100180,6.8287,146.44,146.4,3.47913941]
[1728804100381,6.8287,146.44,146.41,3.47913941]
[1728804100573,6.8287,146.44,146.39,3.47913941]
[1728804100775,6.8287,146.44,146.4,3.47913941]
[1728804100999,6.8287,146.44,146.41,3.47913941]
[1728804101196,6.8287,146.44,146.39,3.47913941]
[1728804101382,6.8287,146.44,146.4,3.47913941]
[1728804101578,6.8287,146.44,146.41,3.47913941]
[1728804101781,6.8287,146.44,146.39,3.47913941]
[1728804101997,6.8287,146.44,146.4,3.47913941]
[1728804102172,6.8284,146.45,146.41,3.47913941]
[1728804102373,6.8284,146.45,146.39,3.47913941]
[1728804102666,6.8284,146.45,146.4,3.47913941]
[1728804102870,6.8284,146.45,146.38,20.0]
[1728804103393,6.8284,146.45,146.41,3.47902407]
[1728804104190,6.8284,146.45,146.39,3.47902407]
[1728804104392,6.8284,146.45,146.4,3.47902407]
[1728804104592,6.8284,146.45,146.41,3.47902407]
[1728804104794,6.8284,146.45,146.39,3.47902407]
[1728804104996,6.8284,146.45,146.4,3.47902407]
[1728804105190,6.8284,146.45,146.41,3.47902407]
[1728804105394,6.8284,146.45,146.38,20.0]
[1728804105690,6.8284,146.45,146.39,3.47929711]
[1728804105892,6.8284,146.45,146.4,3.47929711]
[1728804106097,6.8284,146.45,146.41,3.47929711]
[1728804106282,6.8284,146.45,146.38,20.0]
[1728804106486,6.8284,146.45,146.39,3.47932464]
[1728804106689,6.8284,146.45,146.38,20.0]
[1728804106888,6.8284,146.45,146.4,3.47932384]
[1728804107275,6.8284,146.45,146.41,3.47932384]
[1728804107475,6.8284,146.45,146.38,20.0]
[1728804107694,6.8284,146.45,146.39,3.47957753]
[1728804107892,6.8284,146.45,146.4,3.47957753]
[1728804108197,6.8284,146.45,146.41,3.47957753]
[1728804108406,6.8284,146.45,146.38,31.40198005]
[1728804121415,6.8284,146.45,146.38,20.0]
[1728804124005,6.8279,146.46,146.39,1.36598784]
[1728804125034,6.8279,146.46,146.38,31.40198005]
[1728804136728,6.6283,146.47,146.38,31.40198005]
[1728804136904,6.6283,146.47,146.37,16.3219]
[1728804136905,6.8291,146.44,146.37,20.0]
[1728804137930,6.8295,146.43,146.33,22.3998]
[1728804138113,6.8295,146.43,146.35,11.40198005]
[1728804139328,6.8295,146.43,146.36,20.0]
[1728804143334,6.8295,146.43,146.36,11.40198005]
[1728804143943,6.8295,146.43,146.37,20.0]
[1728804150435,15.75,146.44,146.37,20.0]
[1728804150621,22.579,146.44,146.37,20.0]
[1728804154221,6.8292,146.43,146.37,20.0]
[1728804155725,6.8297,146.42,146.37,20.0]
[1728804155927,6.8297,146.42,146.34,31.40198005]
[1728804156121,6.8297,146.42,146.35,23.776884]
[1728804156313,6.8297,146.42,146.36,20.0]
[1728804159343,6.8302,146.41,146.34,20.0]
[1728804159544,6.8302,146.41,146.33,31.69683339]
[1728804159717,6.8308,146.4,146.33,20.29485334]
[1728804159912,16.3568,146.4,146.32,2.0]
[1728804160238,6.832,146.37,146.32,2.0]
[1728804160443,6.1687,146.39,146.32,2.0]
[1728804160614,6.8321,146.37,146.32,2.0]
[1728804163528,6.1687,146.39,146.32,2.0]
[1728804163730,6.8316,146.38,146.32,2.0]
[1728804164545,12.9998,146.39,146.32,22.0]
[1728804177576,6.8315,146.38,146.32,22.0]
[1728804179260,6.8315,146.38,146.32,2.0]
[1728804182569,15.4964,146.38,146.32,2.0]
[1728804182859,6.8335,146.34,146.32,2.0]
[1728804190742,43.776884,146.36,146.32,2.0]
[1728804190948,6.8338,146.33,146.32,2.0]
[1728804204968,6.8334,146.34,146.32,2.0]
[1728804217589,6.8338,146.33,146.32,2.0]
[1728804223793,43.776884,146.37,146.32,2.0]
[1728804223990,6.8326,146.36,146.32,2.0]
[1728804224706,6.8329,146.35,146.32,2.0]
[1728804226902,43.776884,146.37,146.32,2.0]
[1728804227100,6.8334,146.34,146.32,2.0]
[1728804230523,15.4964,146.38,146.32,2.0]
[1728804230707,6.833,146.35,146.32,2.0]
[1728804232617,6.8325,146.36,146.32,2.0]
[1728804238521,6.8319,146.38,146.32,2.0]
[1728804238722,6.8319,146.38,146.33,3.47766862]
[1728804238930,43.776884,146.41,146.34,3.47766862]
[1728804239227,6.8315,146.38,146.32,2.0]
[1728804239427,6.8314,146.39,146.33,3.47584444]
[1728804239602,6.8314,146.39,146.34,3.47584444]
[1728804239803,6.8314,146.39,146.33,1.36658773]
[1728804240104,6.8314,146.39,146.34,3.4757574]
[1728804240320,6.8314,146.39,146.33,1.36658773]
[1728804240504,6.8314,146.39,146.34,3.47583144]
[1728804240704,6.8314,146.39,146.33,1.36658773]
[1728804240911,6.8314,146.39,146.34,3.47583144]
[1728804241111,20.0,146.41,146.32,13.40198005]
[1728804241313,6.8307,146.4,146.33,3.47583064]
[1728804241513,6.8307,146.4,146.32,13.40198005]
[1728804241514,6.8307,146.4,146.34,3.47583064]
[1728804241710,6.8307,146.4,146.33,4.84227662]
[1728804241918,20.0,146.41,146.34,11.40198005]
[1728804242128,21.9352,146.42,146.35,21.36636818]
[1728804242428,6.8304,146.41,146.35,21.36636818]
[1728804243128,6.8304,146.41,146.35,12.76834823]
[1728804243737,6.8304,146.41,146.36,20.0]
[1728804244109,6.8298,146.42,146.36,20.0]
[1728804245212,6.8298,146.42,146.37,1.36623498]
[1728804245609,6.8292,146.43,146.36,31.40198005]
[1728804245828,6.8292,146.43,146.37,1.36620707]
[1728804247412,6.8292,146.43,146.38,1.36615475]
[1728804247618,6.8292,146.43,146.37,1.36612399]
[1728804248214,6.8292,146.43,146.36,31.40198005]
[1728804248525,6.8292,146.43,146.35,31.40198005]
[1728804249624,6.8297,146.42,146.35,31.40198005]
[1728804250928,6.8297,146.42,146.36,11.40198005]
[1728804251127,6.8297,146.42,146.37,21.36615203]
[1728804251527,6.8297,146.42,146.37,20.0]
[1728804258840,6.8297,146.42,146.38,1.36615314]
[1728804259246,6.8297,146.42,146.37,20.0]
[1728804269753,6.8297,146.42,146.35,31.40198005]
[1728804270254,6.8297,146.42,146.37,20.0]
[1728804284359,6.8297,146.42,146.38,3.47340709]
[1728804284560,6.8297,146.42,146.37,20.0]
[1728804284744,6.8297,146.42,146.38,3.47348845]
[1728804284946,6.8297,146.42,146.37,20.0]
[1728804285272,6.8297,146.42,146.38,3.47348914]
[1728804285444,6.8297,146.42,146.37,20.0]
[1728804285764,6.8297,146.42,146.38,3.47474869]
[1728804285944,6.8297,146.42,146.37,20.0]
[1728804286149,6.8297,146.42,146.38,3.47475287]
[1728804286344,6.8297,146.42,146.37,20.0]
[1728804286547,6.8297,146.42,146.38,3.47482121]
[1728804286766,6.8297,146.42,146.37,20.0]
[1728804286967,6.8297,146.42,146.38,3.47484147]